bitfinex/quotes_SOLUSD_20220130
["timestamp","ask_amount","ask_price","bid_price","bid_amount"]
[1643577064087,6.0,92.37,92.312,0.45]
[1643577064285,0.25,92.369,92.312,0.45]
[1643577064685,6.0,92.37,92.312,0.45]
[1643577065985,0.25,92.369,92.312,0.45]
[1643577069589,16.251,92.37,92.312,0.45]
[1643577069991,16.25,92.38,92.312,0.45]
[1643577072392,69.775,92.4,92.312,108.25]
[1643577072593,0.25,92.379,92.322,6.0]
[1643577073292,0.25,92.379,92.321,6.0]
[1643577073692,0.25,92.389,92.321,6.0]
[1643577073893,0.25,92.389,92.325,6.0]
[1643577074092,0.25,92.389,92.322,0.2]
[1643577074294,0.25,92.399,92.32,16.246]
[1643577074492,0.25,92.399,92.321,0.2]
[1643577074798,6.0,92.39,92.321,0.2]
[1643577075192,0.25,92.389,92.321,0.2]
[1643577075598,54.15,92.43,92.331,107.8]
[1643577075792,54.15,92.43,92.33,22.245]
[1643577075793,0.25,92.429,92.333,107.8]
[1643577075993,15.61,92.44,92.34,6.0]
[1643577076195,1.49817961,92.459,92.344,107.8]
[1643577076393,1.49817961,92.459,92.345,0.25]
[1643577076595,16.238,92.45,92.38,16.236]
[1643577076799,16.238,92.45,92.381,0.25]
[1643577076994,69.738,92.47,92.38,16.236]
[1643577076995,1.49817961,92.466,92.38,16.236]
[1643577077196,33.37304162,92.459,92.361,23.8722]
[1643577077397,6.0,92.456,92.371,6.0]
[1643577077796,1.49817961,92.463,92.371,6.0]
[1643577077797,1.49817961,92.463,92.38,16.237]
[1643577077998,1.49817961,92.474,92.39,6.0]
[1643577078197,1.49817961,92.476,92.391,24.1146]
[1643577078397,6.0,92.464,92.391,30.3646]
[1643577078597,41.45283146,92.468,92.364,24.1146]
[1643577078598,6.0,92.458,92.364,24.1146]
[1643577078797,16.238,92.45,92.373,6.0]
[1643577079096,6.0,92.458,92.373,6.0]
[1643577079097,43.11426736,92.452,92.38,6.0]
[1643577079399,0.25,92.451,92.381,0.25]
[1643577079997,16.239,92.44,92.381,0.25]
[1643577080300,0.25,92.439,92.381,0.25]
[1643577081699,16.241,92.43,92.374,6.0]
[1643577081900,0.25,92.429,92.375,0.25]
[1643577083124,0.25,92.429,92.365,0.25]
[1643577084600,0.25,92.429,92.364,24.1146]
[1643577084801,0.25,92.429,92.365,0.25]
[1643577086601,6.0,92.42,92.365,0.25]
[1643577086802,0.25,92.419,92.365,0.25]
[1643577088101,6.0,92.42,92.365,0.25]
[1643577088503,16.239,92.44,92.37,16.239]
[1643577088702,6.0,92.43,92.37,16.239]
[1643577089203,22.241,92.43,92.332,1.50395846]
[1643577089401,22.241,92.43,92.322,0.2]
[1643577089402,22.241,92.43,92.331,107.8]
[1643577089605,22.241,92.43,92.331,131.0817]
[1643577090002,0.25,92.429,92.35,16.242]
[1643577090631,0.25,92.429,92.351,0.25]
[1643577090803,0.25,92.429,92.36,6.0]
[1643577091004,0.25,92.429,92.36,22.241]
[1643577091303,0.25,92.429,92.361,6.25]
[1643577091907,0.25,92.439,92.361,6.25]
[1643577092304,0.25,92.439,92.362,47.3219]
[1643577092704,16.241,92.43,92.363,0.25]
[1643577092904,39.01675043,92.429,92.363,0.25]
[1643577094105,16.243,92.42,92.363,0.25]
[1643577094305,0.25,92.419,92.363,0.25]
[1643577095108,6.25,92.419,92.363,0.25]
[1643577098014,6.0,92.419,92.363,0.25]
[1643577098635,0.25,92.418,92.35,16.242]
[1643577098835,0.25,92.418,92.332,1.50395846]
[1643577099036,0.25,92.418,92.342,6.0]
[1643577099236,0.25,92.418,92.335,6.0]
[1643577099436,0.25,92.418,92.336,30.9275]
[1643577099635,0.25,92.418,92.336,24.9275]
[1643577099837,0.25,92.428,92.337,0.25]
[1643577101039,16.244,92.41,92.34,16.244]
[1643577101439,0.25,92.409,92.341,0.25]
[1643577102638,6.0,92.4,92.341,0.25]
[1643577102836,0.25,92.399,92.341,0.25]
[1643577104536,0.25,92.399,92.337,0.25]
[1643577104936,0.25,92.399,92.336,24.6775]
[1643577106438,0.25,92.399,92.337,0.25]
[1643577109841,0.25,92.399,92.34,16.245]
[1643577110243,0.25,92.409,92.341,0.25]
[1643577110643,40.94318314,92.409,92.341,0.25]
[1643577111041,16.246,92.4,92.341,0.25]
[1643577111441,0.25,92.399,92.337,0.25]
[1643577113443,6.0,92.39,92.337,0.25]
[1643577113844,0.25,92.389,92.337,0.25]
[1643577117249,0.25,92.389,92.34,16.244]
[1643577117452,6.0,92.39,92.347,107.8]
[1643577117652,16.244,92.41,92.347,107.8]
[1643577117851,0.25,92.409,92.348,0.25]
[1643577118550,16.244,92.41,92.348,0.25]
[1643577118952,1.49817961,92.42,92.35,16.243]
[1643577119152,1.49817961,92.429,92.36,6.0]
[1643577119352,1.49817961,92.432,92.361,0.25]
[1643577119555,1.49817961,92.432,92.361,6.25]
[1643577119853,16.241,92.43,92.362,107.8]
[1643577120253,1.49817961,92.432,92.363,0.25]
[1643577120454,1.49817961,92.44,92.372,6.0]
[1643577120655,69.738,92.47,92.372,6.0]
[1643577120656,1.49817961,92.442,92.372,6.0]
[1643577120954,69.738,92.47,92.38,16.237]
[1643577120955,1.49817961,92.44,92.38,16.237]
[1643577121153,35.12879823,92.439,92.38,16.237]
[1643577121454,1.49817961,92.438,92.38,16.237]
[1643577121654,6.0,92.429,92.38,16.237]
[1643577121855,0.25,92.428,92.38,16.237]
[1643577122253,6.0,92.429,92.38,16.237]
[1643577122254,6.0,92.429,92.381,0.25]
[1643577122654,1.49817961,92.444,92.381,0.25]
[1643577122954,0.25,92.443,92.381,0.25]
[1643577123954,0.25,92.444,92.381,0.25]
[1643577124755,1.49817961,92.446,92.39,16.237]
[1643577125156,1.49817961,92.446,92.4,6.0]
[1643577125457,1.49817961,92.457,92.401,0.25]
[1643577125754,1.49817961,92.458,92.41,16.233]
[1643577125958,0.25,92.456,92.39,54.106]
[1643577126155,0.25,92.456,92.375,6.0]
[1643577126356,0.25,92.456,92.374,6.0]
[1643577126655,0.25,92.456,92.354,1.50395846]
[1643577126656,34.67279554,92.445,92.373,6.0]
[1643577126855,16.239,92.44,92.373,6.0]
[1643577127056,16.239,92.44,92.38,6.0]
[1643577127257,0.25,92.439,92.373,6.0]
[1643577127658,0.25,92.439,92.374,0.25]
[1643577128463,0.25,92.439,92.35,15.61]
[1643577128663,16.241,92.43,92.34,15.61]
[1643577128862,16.241,92.43,92.336,1.50395846]
[1643577128863,0.25,92.429,92.336,1.50395846]
[1643577129064,1.49817961,92.425,92.323,1.50395846]
[1643577129262,1.49817961,92.42,92.328,6.0]
[1643577129463,38.34143066,92.414,92.328,6.0]
[1643577129763,1.49817961,92.405,92.303,1.50395846]
[1643577129961,16.247,92.4,92.303,1.50395846]
[1643577130164,1.49817961,92.398,92.295,1.50395846]
[1643577130365,1.49817961,92.388,92.282,1.50395846]
[1643577130567,15.61,92.38,92.282,1.50395846]
[1643577130766,44.39446336,92.377,92.275,1.50395846]
[1643577130969,1.49817961,92.371,92.264,1.50395846]
[1643577131172,31.868,92.37,92.261,1.50395846]
[1643577131371,1.49817961,92.367,92.261,1.50395846]
[1643577131572,1.49817961,92.366,92.259,1.50395846]
[1643577131770,1.49817961,92.364,92.258,1.50395846]
[1643577131994,40.17263546,92.349,92.258,1.50395846]
[1643577132194,40.17263546,92.349,92.251,0.2]
[1643577132195,40.17263546,92.349,92.259,0.25]
[1643577132394,0.25,92.348,92.251,1.95395846]
[1643577132598,0.25,92.348,92.258,0.25]
[1643577132894,0.25,92.348,92.251,0.45]
[1643577133294,0.25,92.348,92.251,0.2]
[1643577133696,16.26,92.34,92.26,6.0]
[1643577133897,0.25,92.339,92.26,6.0]
[1643577134098,0.25,92.339,92.26,22.258]
[1643577134397,0.25,92.339,92.261,0.2]
[1643577134599,0.25,92.339,92.254,6.0]
[1643577134798,0.25,92.339,92.254,6.45]
[1643577135000,15.61,92.37,92.257,1.50395846]
[1643577135298,0.25,92.369,92.264,6.0]
[1643577135498,0.25,92.369,92.267,6.0]
[1643577135698,0.25,92.369,92.3,16.252]
[1643577135900,35.09370908,92.369,92.301,0.45]
[1643577136101,35.09370908,92.369,92.261,1.50395846]
[1643577136102,35.09370908,92.369,92.271,0.2]
[1643577136298,38.0504005,92.369,92.25,1.50395846]
[1643577136498,35.09370908,92.369,92.242,1.50395846]
[1643577136699,16.253,92.36,92.26,16.257]
[1643577136900,0.25,92.359,92.261,0.2]
[1643577137099,0.25,92.359,92.26,6.0]
[1643577137301,6.25,92.359,92.26,6.0]
[1643577137600,6.25,92.359,92.264,6.0]
[1643577137800,16.256,92.35,92.27,16.257]
[1643577138000,16.256,92.35,92.271,0.2]
[1643577138200,0.25,92.349,92.271,0.45]
[1643577139302,0.25,92.367,92.271,0.45]
[1643577139906,0.25,92.367,92.271,0.2]
[1643577140109,43.54243677,92.339,92.271,0.2]
[1643577140307,0.25,92.338,92.271,0.45]
[1643577140510,0.25,92.338,92.271,0.2]
[1643577140810,0.25,92.338,92.265,0.25]
[1643577141008,6.0,92.329,92.265,0.25]
[1643577141412,0.25,92.328,92.265,0.25]
[1643577142311,43.54243677,92.339,92.265,0.25]
[1643577142910,43.54243677,92.339,92.27,16.257]
[1643577143112,43.54243677,92.339,92.271,0.2]
[1643577143512,0.25,92.338,92.271,0.2]
[1643577143713,0.25,92.338,92.271,0.45]
[1643577144113,0.25,92.338,92.28,6.0]
[1643577144311,16.258,92.34,92.28,6.0]
[1643577144513,16.255,92.35,92.281,0.25]
[1643577144712,16.255,92.35,92.281,0.45]
[1643577145412,39.34365979,92.349,92.281,0.45]
[1643577145617,39.34365979,92.349,92.272,6.0]
[1643577145813,0.25,92.348,92.273,0.25]
[1643577146113,0.25,92.348,92.272,6.0]
[1643577146114,6.0,92.339,92.272,6.0]
[1643577146318,0.25,92.338,92.261,6.0]
[1643577146915,0.25,92.338,92.27,16.257]
[1643577147116,0.25,92.338,92.28,6.0]
[1643577147517,0.25,92.339,92.28,6.0]
[1643577147918,0.25,92.348,92.28,6.0]
[1643577148118,0.25,92.348,92.271,0.2]
[1643577148318,0.25,92.348,92.271,0.45]
[1643577148519,0.25,92.348,92.271,0.25]
[1643577148919,0.25,92.349,92.271,0.25]
[1643577149118,0.25,92.349,92.271,49.2097]
[1643577149319,0.25,92.387,92.272,0.2]
[1643577149521,0.25,92.387,92.281,6.0]
[1643577149718,6.0,92.378,92.281,6.2]
[1643577149919,0.25,92.377,92.29,6.0]
[1643577150121,0.25,92.377,92.291,6.0]
[1643577150319,0.25,92.377,92.291,0.45]
[1643577150520,0.25,92.377,92.291,0.25]
[1643577150721,0.25,92.377,92.291,108.05]
[1643577150920,6.0,92.378,92.293,107.8]
[1643577151122,6.0,92.378,92.31,16.25]
[1643577151321,6.0,92.378,92.311,0.2]
[1643577152324,6.0,92.378,92.32,22.249]
[1643577152525,54.159,92.42,92.33,6.0]
[1643577152724,54.159,92.42,92.321,2.35673219]
[1643577152725,15.61,92.42,92.321,2.35673219]
[1643577153025,1.49817961,92.437,92.331,8.35673219]
[1643577153226,40.30014838,92.428,92.332,23.5863]
[1643577153424,6.0,92.424,92.341,6.0]
[1643577153626,6.0,92.424,92.342,6.0]
[1643577153825,0.25,92.423,92.342,6.0]
[1643577154027,16.243,92.42,92.35,16.243]
[1643577154326,0.25,92.419,92.35,16.243]
[1643577154824,0.25,92.419,92.351,0.25]
[1643577155025,0.25,92.419,92.36,16.242]
[1643577155325,0.25,92.419,92.342,6.0]
[1643577155524,0.25,92.423,92.344,0.25]
[1643577155926,0.25,92.427,92.344,0.25]
[1643577156530,16.243,92.42,92.353,6.0]
[1643577156728,0.25,92.419,92.353,6.0]
[1643577156929,6.0,92.41,92.332,23.5863]
[1643577157128,0.25,92.419,92.318,0.2]
[1643577157129,1.49817961,92.418,92.318,0.2]
[1643577157329,37.93537298,92.399,92.321,6.0]
[1643577157530,6.0,92.389,92.33,16.247]
[1643577157930,0.25,92.388,92.33,16.247]
[1643577158152,0.25,92.388,92.314,0.2]
[1643577158153,3.20669142,92.388,92.314,0.2]
[1643577158352,3.20669142,92.388,92.291,0.2]
[1643577158552,2.95669142,92.387,92.291,0.2]
[1643577158953,16.25,92.38,92.3,16.252]
[1643577159157,43.88,92.38,92.301,0.2]
[1643577159353,111.00669142,92.379,92.278,0.2]
[1643577159552,1.49817961,92.377,92.258,1.50395846]
[1643577159752,1.49817961,92.377,92.256,1.50395846]
[1643577159753,1.49817961,92.375,92.256,1.50395846]
[1643577159953,1.49817961,92.374,92.255,1.50395846]
[1643577160156,143.05121464,92.359,92.26,16.259]
[1643577160354,143.05121464,92.359,92.236,69.3984]
[1643577160355,0.25,92.358,92.261,0.2]
[1643577160554,1.49817961,92.354,92.237,0.2]
[1643577160755,1.49817961,92.349,92.237,0.2]
[1643577160953,1.49817961,92.347,92.305,0.00281733]
[1643577161354,3.20669142,92.346,92.305,0.00281733]
[1643577161757,0.25,92.346,92.305,1.06514617]
[1643577161953,36.12328648,92.346,92.305,1.06514617]
[1643577162153,16.264,92.34,92.305,1.06514617]
[1643577162356,15.61,92.33,92.305,1.06514617]
[1643577162555,107.8,92.329,92.305,1.06514617]
[1643577162756,108.05,92.329,92.305,1.06514617]
[1643577163155,0.25,92.329,92.305,1.06514617]
[1643577163355,108.05,92.329,92.305,1.06514617]
[1643577164157,16.265,92.32,92.305,1.06514617]
[1643577164361,0.25,92.319,92.305,1.06514617]
[1643577164560,48.0,92.318,92.237,0.2]
[1643577164758,41.66395277,92.317,92.246,6.0]
[1643577164959,41.91395277,92.317,92.246,6.0]
[1643577165360,41.83799988,92.299,92.246,6.0]
[1643577165560,41.83799988,92.299,92.237,0.25]
[1643577165765,0.25,92.298,92.234,0.25]
[1643577166171,0.25,92.298,92.235,2.35673219]
[1643577166365,0.25,92.298,92.236,0.25]
[1643577166566,0.25,92.298,92.245,6.0]
[1643577167170,69.822,92.33,92.247,6.0]
[1643577167171,0.25,92.329,92.247,6.0]
[1643577167369,0.25,92.329,92.246,2.35673219]
[1643577167370,0.25,92.329,92.248,0.25]
[1643577167574,16.261,92.32,92.256,6.0]
[1643577167770,0.25,92.319,92.256,6.0]
[1643577167974,0.25,92.319,92.258,6.0]
[1643577168275,45.44326814,92.329,92.257,0.2]
[1643577168470,45.44326814,92.329,92.248,0.25]
[1643577168670,16.263,92.31,92.248,6.25]
[1643577168872,38.05868451,92.309,92.249,0.25]
[1643577169071,38.05868451,92.309,92.248,6.0]
[1643577169476,38.05868451,92.309,92.241,6.0]
[1643577169675,0.25,92.308,92.241,6.0]
[1643577169877,0.25,92.308,92.25,16.261]
[1643577170075,0.25,92.308,92.251,0.2]
[1643577170273,0.25,92.339,92.251,0.2]
[1643577170472,6.0,92.33,92.251,2.55673219]
[1643577170675,6.0,92.33,92.252,2.35673219]
[1643577171073,16.261,92.32,92.253,0.25]
[1643577171472,16.261,92.32,92.254,2.35673219]
[1643577171673,6.0,92.33,92.262,6.0]
[1643577171877,6.0,92.33,92.264,6.0]
[1643577172080,15.61,92.36,92.264,6.0]
[1643577172278,15.61,92.36,92.265,0.25]
[1643577172581,24.8582,92.392,92.29,16.254]
[1643577172582,1.49817961,92.387,92.29,16.254]
[1643577172778,15.61,92.38,92.291,0.45]
[1643577172979,0.25,92.386,92.291,0.25]
[1643577173179,0.25,92.379,92.291,0.25]
[1643577173380,0.25,92.379,92.29,54.162]
[1643577173581,0.25,92.379,92.3,6.0]
[1643577173781,2.95669142,92.378,92.29,16.254]
[1643577173980,2.95669142,92.378,92.291,0.2]
[1643577174982,16.252,92.37,92.291,0.2]
[1643577175183,33.57220124,92.369,92.291,0.2]
[1643577175388,33.82220124,92.369,92.291,0.2]
[1643577176188,16.255,92.36,92.284,6.0]
[1643577176391,0.25,92.359,92.275,0.25]
[1643577176590,3.20669142,92.359,92.275,0.25]
[1643577176789,2.95669142,92.358,92.275,0.25]
[1643577177007,2.95669142,92.358,92.26,6.0]
[1643577177204,16.259,92.34,92.26,22.259]
[1643577177407,36.78321706,92.339,92.261,0.2]
[1643577177806,6.0,92.329,92.261,0.2]
[1643577178202,0.25,92.328,92.261,0.2]
[1643577178402,0.25,92.328,92.254,6.0]
[1643577178602,0.25,92.328,92.245,6.0]
[1643577178808,0.25,92.328,92.246,0.25]
[1643577179003,3.20669142,92.328,92.246,0.25]
[1643577180802,0.25,92.328,92.246,0.25]
[1643577181006,16.261,92.32,92.245,6.0]
[1643577181207,42.68589038,92.319,92.245,6.0]
[1643577181407,6.0,92.31,92.245,6.0]
[1643577181805,0.25,92.309,92.245,6.0]
[1643577182415,6.0,92.31,92.246,0.25]
[1643577182606,6.0,92.31,92.245,6.0]
[1643577183007,16.265,92.3,92.245,6.0]
[1643577183206,40.81606227,92.299,92.236,0.2]
[1643577183409,40.81606227,92.299,92.211,0.2]
[1643577183410,107.8,92.298,92.211,0.2]
[1643577183609,108.05,92.298,92.201,1.50395846]
[1643577183812,108.05,92.298,92.184,0.2]
[1643577183813,15.61,92.29,92.192,1.50395846]
[1643577184006,15.61,92.29,92.187,1.50395846]
[1643577184207,16.274,92.27,92.18,1.50395846]
[1643577184411,34.25724484,92.269,92.18,1.50395846]
[1643577184607,34.25724484,92.269,92.18,16.273]
[1643577184808,34.25724484,92.269,92.19,6.0]
[1643577185012,34.25724484,92.269,92.207,2.36455998]
[1643577185410,34.25724484,92.269,92.195,2.36455998]
[1643577185610,34.25724484,92.269,92.205,6.0]
[1643577186607,6.0,92.259,92.205,6.0]
[1643577186809,0.25,92.258,92.205,6.0]
[1643577188809,0.25,92.259,92.205,6.0]
[1643577190111,36.86381056,92.249,92.205,6.0]
[1643577190310,36.86381056,92.249,92.191,0.2]
[1643577190311,0.25,92.248,92.181,0.2]
[1643577190509,0.25,92.248,92.14,54.25]
[1643577190510,0.25,92.248,92.156,0.2]
[1643577190711,3.20669142,92.248,92.156,0.2]
[1643577190909,2.95669142,92.247,92.156,0.2]
[1643577191312,0.25,92.246,92.156,0.2]
[1643577191509,48.0,92.245,92.145,0.2]
[1643577191709,16.277,92.24,92.145,0.45]
[1643577191910,0.25,92.239,92.145,0.45]
[1643577192110,6.0,92.238,92.145,0.2]
[1643577192311,0.25,92.237,92.145,0.2]
[1643577192811,108.05,92.237,92.154,6.0]
[1643577193011,16.281,92.22,92.154,6.0]
[1643577193210,39.30283843,92.219,92.154,6.0]
[1643577193409,39.55283843,92.219,92.154,6.0]
[1643577194612,16.281,92.21,92.154,6.0]
[1643577194812,0.25,92.209,92.154,6.0]
[1643577196817,0.25,92.209,92.155,0.25]
[1643577197015,6.25,92.209,92.155,0.25]
[1643577197215,6.0,92.209,92.155,0.25]
[1643577197414,0.25,92.208,92.155,0.25]
[1643577198215,0.25,92.208,92.145,0.2]
[1643577198615,0.25,92.208,92.13,16.282]
[1643577198616,0.25,92.208,92.133,0.2]
[1643577199018,9.49,92.208,92.133,0.2]
[1643577199215,16.282,92.2,92.133,0.2]
[1643577199414,41.01424267,92.199,92.133,0.2]
[1643577199617,41.01424267,92.199,92.142,6.0]
[1643577201816,40.76424267,92.199,92.142,6.0]
[1643577202015,9.24,92.208,92.142,6.0]
[1643577202220,9.24,92.208,92.143,2.61496201]
[1643577202714,9.24,92.208,92.153,6.0]
[1643577202916,9.24,92.208,92.154,0.25]
[1643577203118,0.25,92.207,92.154,0.25]
[1643577203316,0.25,92.207,92.15,16.279]
[1643577203517,0.25,92.207,92.151,0.2]
[1643577203720,0.25,92.207,92.124,0.2]
[1643577203917,0.25,92.207,92.14,6.0]
[1643577204116,0.25,92.207,92.133,6.0]
[1643577204316,9.24,92.208,92.133,113.8]
[1643577204519,9.24,92.208,92.141,107.8]
[1643577204717,9.24,92.208,92.143,113.8]
[1643577204917,9.24,92.208,92.15,6.0]
[1643577205117,28.34038493,92.279,92.144,0.45]
[1643577205118,71.00447952,92.299,92.155,48.0]
[1643577205319,22.42447952,92.299,92.208,2.36496201]
[1643577205517,2.96641961,92.365,92.23,16.258]
[1643577205721,5.92129308,92.405,92.24,210.78]
[1643577205918,1.14,92.436,92.24,210.78]
[1643577205919,39.32245412,92.364,92.242,107.8]
[1643577206118,39.32245412,92.364,92.252,6.0]
[1643577206318,39.32245412,92.364,92.26,15.61]
[1643577206521,39.32245412,92.364,92.27,22.253]
[1643577206719,16.258,92.36,92.271,0.2]
[1643577207119,16.258,92.36,92.27,14.06]
[1643577207319,44.04470307,92.349,92.27,14.06]
[1643577207520,107.8,92.348,92.27,14.06]
[1643577207721,110.75669142,92.348,92.27,14.06]
[1643577207920,16.262,92.34,92.25,15.61]
[1643577208121,107.8,92.339,92.24,15.61]
[1643577208322,0.25,92.338,92.24,15.61]
[1643577208520,3.20669142,92.338,92.24,15.61]
[1643577208923,38.25558058,92.309,92.24,15.61]
[1643577210023,16.268,92.3,92.21,15.61]
[1643577210226,16.268,92.3,92.19,54.229]
[1643577210227,16.268,92.3,92.19,15.61]
[1643577210422,110.75669142,92.299,92.19,15.61]
[1643577210826,3.20669142,92.298,92.19,15.61]
[1643577211025,39.43298411,92.288,92.2,6.0]
[1643577211227,39.43298411,92.288,92.2,15.61]
[1643577211427,0.25,92.287,92.21,6.0]
[1643577211625,0.25,92.287,92.2,15.61]
[1643577212025,16.273,92.28,92.2,31.881]
[1643577212425,0.25,92.279,92.201,0.2]
[1643577213625,0.25,92.279,92.21,16.27]
[1643577213824,0.25,92.286,92.211,0.2]
[1643577216230,16.271,92.28,92.211,0.2]
[1643577216528,0.25,92.286,92.211,0.2]
[1643577216729,0.25,92.279,92.22,16.268]
[1643577216930,39.43298411,92.288,92.221,0.2]
[1643577217130,15.61,92.32,92.23,6.0]
[1643577217332,32.2583,92.34,92.231,0.25]
[1643577217530,2.95669142,92.332,92.223,6.0]
[1643577217729,16.265,92.32,92.211,0.2]
[1643577218155,6.0,92.31,92.211,0.2]
[1643577218331,0.25,92.309,92.211,0.2]
[1643577219133,40.65984525,92.299,92.22,16.268]
[1643577219334,0.25,92.298,92.221,0.2]
[1643577219533,108.05,92.298,92.211,0.2]
[1643577220233,16.27,92.29,92.211,0.2]
[1643577220634,0.25,92.289,92.211,0.2]
[1643577221037,16.27,92.29,92.211,0.2]
[1643577221236,40.65984525,92.299,92.211,0.2]
[1643577221436,40.65984525,92.299,92.211,0.45]
[1643577221636,40.65984525,92.299,92.22,6.0]
[1643577221836,6.0,92.289,92.23,16.267]
[1643577222036,6.0,92.289,92.231,0.2]
[1643577222535,0.25,92.288,92.231,0.2]
[1643577223542,6.0,92.289,92.231,0.2]
[1643577224843,0.25,92.288,92.231,0.2]
[1643577228068,0.25,92.288,92.24,16.265]
[1643577228269,0.25,92.288,92.241,0.2]
[1643577228868,16.264,92.32,92.241,0.2]
[1643577228869,0.25,92.319,92.241,0.2]
[1643577229270,46.97005015,92.319,92.241,0.2]
[1643577229969,46.72005015,92.319,92.25,16.264]
[1643577230173,2.95669142,92.352,92.251,0.2]
[1643577230374,15.9557,92.359,92.242,2.37111775]
[1643577230573,15.61,92.37,92.252,6.0]
[1643577230774,2.96982364,92.369,92.253,0.25]
[1643577231179,39.05779992,92.368,92.253,108.05]
[1643577231372,110.76982364,92.367,92.254,0.2]
[1643577231573,108.05,92.367,92.254,0.2]
[1643577231771,16.257,92.36,92.27,16.26]
[1643577231971,16.257,92.36,92.271,0.2]
[1643577232171,0.25,92.359,92.264,0.25]
[1643577232372,37.49044923,92.349,92.251,0.2]
[1643577232573,107.8,92.345,92.251,0.2]
[1643577232774,16.264,92.32,92.242,0.2]
[1643577232973,107.8,92.318,92.242,0.2]
[1643577233171,44.73576596,92.319,92.242,0.2]
[1643577233372,0.25,92.317,92.242,0.2]
[1643577233872,0.25,92.317,92.242,0.45]
[1643577234273,0.25,92.318,92.242,0.45]
[1643577235072,0.25,92.318,92.26,16.261]
[1643577235271,0.25,92.318,92.261,0.2]
[1643577235672,0.25,92.318,92.242,0.45]
[1643577236674,0.25,92.318,92.251,6.0]
[1643577236874,107.8,92.357,92.251,6.0]
[1643577236875,0.25,92.349,92.252,0.25]
[1643577237080,0.25,92.349,92.27,16.26]
[1643577237274,0.25,92.349,92.271,0.45]
[1643577237474,44.63407034,92.349,92.271,0.45]
[1643577237674,44.63407034,92.349,92.271,0.25]
[1643577238077,44.63407034,92.349,92.28,16.258]
[1643577238280,44.63407034,92.349,92.281,0.2]
[1643577238677,44.63407034,92.349,92.253,0.25]
[1643577239077,44.63407034,92.349,92.27,16.26]
[1643577239279,44.63407034,92.349,92.271,0.45]
[1643577239882,16.261,92.34,92.271,0.2]
[1643577240083,16.261,92.34,92.244,0.2]
[1643577240282,0.25,92.339,92.244,0.2]
[1643577240483,36.50113811,92.328,92.25,16.263]
[1643577240680,36.50113811,92.328,92.251,0.2]